bitfinex/quotes_ETHUSD_20260308
["timestamp","ask_amount","ask_price","bid_price","bid_amount"]
[1772932843939,0.47621389,1969.4,1969.2,0.0011]
[1772932844757,0.001,1969.4,1969.2,0.49124587]
[1772932852749,0.001,1969.4,1969.3,1.26948661]
[1772932854376,0.47721389,1969.7,1969.3,1.75963248]
[1772932854573,0.001,1969.8,1969.4,0.49014587]
[1772932854774,0.15540196,1969.9,1969.5,1.75950357]
[1772932861186,0.001,1969.8,1969.5,1.75950357]
[1772932861398,0.16358352,1969.8,1969.5,1.75950357]
[1772932866391,0.001,1969.8,1969.6,0.49220822]
[1772932867890,0.001,1969.8,1969.7,1.76143703]
[1772932876584,0.001,1969.8,1969.7,1.26922881]
[1772932877561,0.001,1969.8,1969.6,3.06058008]
[1772932882991,0.001,1969.8,1969.7,0.49220822]
[1772932883710,0.001,1969.8,1969.7,1.76143703]
[1772932884998,0.001,1969.8,1969.7,1.76243703]
[1772932888096,0.001,1969.8,1969.7,1.77833008]
[1772932890702,0.001,1969.8,1969.7,1.27022881]
[1772932892209,0.001,1969.8,1969.7,1.76243703]
[1772932896017,0.001,1969.8,1969.7,1.77834378]
[1772932896392,0.001,1969.8,1969.7,0.50911497]
[1772932896696,0.001,1969.8,1969.7,1.77834378]
[1772932904108,0.001,1969.8,1969.7,1.28613556]
[1772932905923,0.00353886,1970.0,1969.8,0.48942753]
[1772932908819,0.00353886,1970.0,1969.8,1.75856693]
[1772932909523,0.00353886,1970.0,1969.8,1.75956693]
[1772932910423,0.00353886,1970.0,1969.9,0.50533266]
[1772932911499,0.00353886,1970.0,1969.9,1.77443261]
[1772932911698,0.00353886,1970.0,1969.9,1.80929147]
[1772932911925,0.18920036,1970.2,1969.9,1.26909995]
[1772932912301,0.18920036,1970.2,1969.9,1.75852748]
[1772932913329,0.19148645,1970.3,1969.9,1.75852748]
[1772932914108,0.19148645,1970.3,1969.9,1.26909995]
[1772932914423,0.19148645,1970.3,1970.0,0.48942753]
[1772932916108,0.19148645,1970.3,1969.9,3.08052748]
[1772932919410,0.1911399,1970.2,1969.9,1.322]
[1772932919620,0.1911399,1970.2,1969.9,2.59109459]
[1772932921542,0.1911399,1970.2,1969.8,0.001]
[1772932921543,0.19193088,1970.1,1969.8,0.001]
[1772932921740,0.19193088,1970.1,1969.9,0.001]
[1772932921931,0.19393088,1970.1,1969.9,0.001]
[1772932923542,1.4617346,1970.0,1969.9,0.001]
[1772932924446,0.19294372,1969.9,1969.7,0.001]
[1772932926118,1.46259697,1969.8,1969.7,0.001]
[1772932926549,0.19343259,1969.8,1969.7,0.001]
[1772932929448,0.19313974,1969.7,1969.6,0.0011]
[1772932929654,0.19313974,1969.7,1969.4,0.001]
[1772932930864,0.19360003,1969.5,1969.4,0.001]
[1772932935843,5.07676346,1969.8,1969.4,0.001]
[1772932935844,0.19447674,1969.7,1969.4,0.001]
[1772932938239,0.19510286,1969.5,1969.4,0.001]
[1772932940660,1.46446056,1969.5,1969.4,0.001]
[1772932942052,0.19510286,1969.5,1969.4,0.001]
[1772932945286,1.46446056,1969.5,1969.4,0.001]
[1772932950650,0.19642157,1969.4,1969.3,0.0011]
[1772932954869,1.46584372,1969.4,1969.3,0.0011]
[1772932968968,1.46584372,1969.4,1968.7,0.52415706]
[1772932968969,0.19964079,1969.1,1968.7,0.52415706]
[1772932970571,0.19964079,1969.1,1968.8,0.52405706]
[1772932972468,1.26968004,1969.0,1968.8,0.52405706]
[1772932975094,0.20047501,1969.7,1968.9,0.52305706]
[1772932975286,1.46976826,1969.6,1968.9,0.52305706]
[1772932975486,0.20047501,1969.5,1968.9,0.52305706]
[1772932975809,0.22686728,1969.5,1968.9,0.52305706]
[1772932978495,0.20087015,1969.3,1968.9,0.52305706]
[1772932979181,0.20087015,1969.3,1968.8,0.52405706]
[1772932979385,0.02639227,1969.2,1968.8,0.52405706]
[1772932979593,0.22739259,1969.2,1968.8,0.52405706]
[1772932980411,1.4698334,1969.0,1968.6,0.52415706]
[1772932980617,1.2697004,1969.0,1968.6,0.52415706]
[1772932980911,0.02529227,1969.0,1968.7,0.52305706]
[1772932981211,1.26955108,1969.2,1968.7,0.52305706]
[1772932981376,0.02529227,1969.1,1968.7,0.52305706]
[1772932982613,1.29491943,1969.1,1968.7,0.52305706]
[1772932983113,1.29491943,1969.1,1968.9,0.0011]
[1772932983295,1.29491943,1969.1,1968.9,0.51526309]
[1772932983487,1.269552,1969.2,1968.9,0.51526309]
[1772932984228,0.02529227,1969.1,1968.9,0.51526309]
[1772932985601,0.02529227,1969.1,1969.0,0.51416309]
[1772932986507,1.27049506,1969.3,1969.0,0.51416309]
[1772932986679,0.02529227,1969.2,1969.0,0.51416309]
[1772932988387,1.27049506,1969.3,1969.0,0.51416309]
[1772932988586,0.02529227,1969.2,1969.0,0.51416309]
[1772932992012,0.02529227,1969.2,1969.1,0.51416309]
[1772932999695,0.001,1969.3,1969.1,0.51416309]
[1772932999900,0.02529227,1969.2,1969.1,0.51416309]
[1772933003106,0.001,1969.3,1969.1,0.51416309]
[1772933003503,1.26922881,1969.7,1969.1,0.51416309]
[1772933003703,5.07651547,1969.9,1969.1,0.51416309]
[1772933005126,5.27634116,1969.9,1969.3,0.51416309]
[1772933006614,0.19965971,1969.8,1969.3,0.51416309]
[1772933006832,0.20065971,1969.8,1969.3,0.51416309]
[1772933007437,1.46985336,1969.8,1969.3,1.78361307]
[1772933007607,1.46985336,1969.8,1969.4,0.51416309]
[1772933008917,0.02529227,1969.7,1969.4,0.51416309]
[1772933018338,1.46985336,1969.8,1969.4,0.51516309]
[1772933018544,0.002,1969.6,1969.4,0.51516309]
[1772933020840,0.02729227,1969.6,1969.5,0.52808369]
[1772933029449,0.001,1969.8,1969.6,0.52808369]
[1772933029623,0.00353886,1970.0,1969.6,0.52808369]
[1772933030545,1.46964716,1970.0,1969.6,0.52808369]
[1772933031147,0.20060807,1970.0,1969.6,0.52808369]
[1772933031546,1.46964988,1970.0,1969.7,0.52808369]
[1772933036043,0.00353886,1970.0,1969.7,0.52808369]
[1772933036840,0.00353886,1970.0,1969.8,0.52808369]
[1772933037059,0.002,1970.2,1969.8,0.52808369]
[1772933038849,0.002,1970.2,1969.9,1.26909995]
[1772933039028,0.002,1970.2,1970.0,0.52808369]
[1772933043134,0.001,1970.1,1970.0,0.52808369]
[1772933046855,0.001,1970.1,1970.0,1.79711922]
[1772933049937,0.002,1970.3,1970.1,0.52785511]
[1772933050166,0.20022341,1970.6,1970.2,0.52785511]
[1772933050337,0.002,1970.6,1970.2,0.52785511]
[1772933052565,0.002,1970.6,1970.3,1.79669741]
[1772933053263,0.002,1970.6,1970.3,0.52785511]
[1772933055267,0.002,1970.5,1970.3,0.52785511]
[1772933056840,0.002,1970.5,1970.4,0.52785511]
[1772933058269,0.002,1970.8,1970.5,0.52785511]
[1772933059169,0.002,1970.8,1970.7,0.52785511]
[1772933059738,0.002,1970.9,1970.7,0.52785511]
[1772933059953,0.2003054,1970.9,1970.2,0.52785511]
[1772933060273,0.2003054,1970.9,1970.3,0.52785511]
[1772933064668,0.19796561,1970.8,1970.4,1.79663302]
[1772933064866,0.19796561,1970.8,1970.4,1.26877791]
[1772933065169,0.19796561,1970.8,1970.5,0.52785511]
[1772933068074,0.19796561,1970.8,1970.6,0.001]
[1772933068378,0.19964382,1970.7,1970.2,1.7967365]
[1772933068568,0.19964382,1970.7,1970.5,0.001]
[1772933070255,1.46514381,1970.6,1970.5,0.001]
[1772933071981,1.26864914,1970.6,1970.5,0.001]
[1772933072980,1.46484876,1970.6,1970.5,0.001]
[1772933075964,0.19619962,1970.6,1970.5,0.001]
[1772933079486,1.46484876,1970.6,1970.5,0.001]
[1772933079690,0.19478259,1970.5,1970.3,0.001]
[1772933081076,0.19678259,1970.5,1970.3,0.001]
[1772933081474,1.26877791,1970.4,1970.3,0.001]
[1772933081679,0.19678259,1970.5,1970.3,0.001]
[1772933081680,1.46554106,1970.5,1970.3,0.001]
[1772933085312,0.19440234,1970.4,1970.3,0.001]
[1772933085491,0.19440234,1970.4,1970.1,0.001]
[1772933088401,0.19322364,1970.2,1970.1,0.001]
[1772933088572,0.19322364,1970.2,1969.8,0.001]
[1772933090103,1.2688423,1970.3,1969.8,0.52576904]
[1772933090277,1.2688423,1970.3,1969.9,0.52476904]
[1772933090893,1.46191588,1970.4,1969.9,0.52476904]
[1772933091402,0.19305527,1970.3,1969.8,0.52576904]
[1772933092001,0.19305527,1970.3,1969.8,1.79492759]
[1772933092204,0.19305527,1970.3,1969.9,0.52476904]
[1772933093202,1.46195165,1970.3,1969.9,0.52586904]
[1772933093385,0.001,1970.1,1969.9,0.52586904]
[1772933098775,0.19366195,1970.1,1969.9,0.0011]
[1772933099309,0.19366195,1970.1,1969.6,0.0011]
[1772933100808,0.001,1970.1,1969.6,0.52586904]
[1772933102719,0.001,1970.1,1969.8,0.50404419]
[1772933103011,0.001,1970.1,1970.0,0.50404419]
[1772933104000,0.001,1970.1,1970.0,1.77307972]
[1772933104215,0.001,1970.1,1970.0,0.50404419]
[1772933106820,0.001,1970.1,1970.0,1.77307972]
[1772933106992,1.26877865,1970.4,1970.1,0.50404419]
[1772933107312,1.27072501,1970.5,1970.1,0.50404419]
[1772933109017,0.002,1970.5,1970.2,0.50404419]
[1772933110827,0.002,1970.5,1970.3,0.50404419]
[1772933115915,0.002,1970.5,1970.4,0.50404419]
[1772933116299,0.002,1970.7,1970.5,0.50404419]
[1772933116738,0.002,1970.7,1970.6,0.50404419]
[1772933127541,0.002,1970.9,1970.7,0.50404419]
[1772933128943,0.002,1970.9,1970.7,0.50504419]
[1772933140953,0.002,1970.9,1970.8,0.5191873]
[1772933141132,0.002,1970.9,1970.8,0.5201873]
[1772933142021,0.002,1970.9,1970.8,0.001]
[1772933151958,0.002,1970.9,1970.8,0.5201873]
[1772933155659,0.002,1971.1,1970.9,0.5191873]
[1772933156574,0.002,1971.1,1970.9,1.26842931]
[1772933156736,0.002,1971.1,1971.0,0.5191873]
[1772933158739,0.002,1971.1,1971.0,1.78757897]
[1772933158965,0.002,1971.1,1971.0,0.5191873]
[1772933160247,0.002,1971.1,1970.9,0.5191873]
[1772933160468,0.002,1971.1,1970.8,1.26951938]
[1772933160469,0.19808868,1971.1,1970.8,0.001]
[1772933161071,0.19606373,1971.0,1970.8,0.001]
[1772933163599,1.46448324,1971.0,1970.8,0.001]
[1772933164551,1.46448324,1971.0,1970.9,0.001]
[1772933165152,1.46648324,1971.0,1970.9,0.001]
[1772933176785,0.002,1971.0,1970.9,0.5322558]
[1772933177390,0.002,1971.0,1970.9,0.001]
[1772933191005,0.002,1971.0,1970.9,0.5322558]
[1772933191804,0.002,1971.1,1971.0,0.5312558]
[1772933200680,0.002,1971.1,1971.0,0.5322558]
[1772933201990,1.26794137,1971.7,1971.1,0.49715226]
[1772933202298,1.44738721,1971.7,1971.1,0.49715226]
[1772933204012,1.44738721,1971.7,1971.2,0.49715226]
[1772933207021,0.17698091,1971.6,1971.2,0.49715226]
[1772933208597,1.26806999,1971.5,1971.2,0.49715226]
[1772933209819,1.26806999,1971.5,1971.0,0.001]
[1772933209820,0.17603476,1971.4,1971.0,0.001]
[1772933211623,1.26819865,1971.3,1971.0,0.001]
[1772933211825,1.44331849,1971.3,1971.0,0.001]
[1772933212825,1.44331849,1971.3,1971.2,0.001]
[1772933213128,1.44331849,1971.3,1971.0,0.49815226]
[1772933213631,1.44331849,1971.3,1971.0,0.001]
[1772933213927,0.1742192,1971.2,1971.0,0.001]
[1772933215604,1.26819865,1971.3,1971.0,0.001]
[1772933215929,0.17333662,1971.3,1971.0,0.001]
[1772933218325,0.17204957,1971.1,1971.0,0.001]
[1772933218526,0.17204957,1971.1,1970.9,0.001]
[1772933218732,0.17204957,1971.1,1970.8,0.001]
[1772933220613,0.17022523,1970.9,1970.8,0.001]
[1772933221013,0.17022523,1970.9,1970.5,0.001]
[1772933221325,0.17022523,1970.9,1970.1,0.49715226]
[1772933221631,0.17022523,1970.9,1969.9,1.27017054]
[1772933221632,0.16982545,1970.8,1970.2,0.001]
[1772933221928,0.16982545,1970.8,1970.1,0.001]
[1772933223512,0.16825863,1970.6,1970.1,0.001]
[1772933223827,0.16825863,1970.5,1970.2,0.001]
[1772933224026,0.16825863,1970.5,1970.1,0.001]
[1772933224432,0.16825863,1970.5,1970.1,0.49323221]
[1772933224811,0.16825863,1970.5,1970.3,0.001]
[1772933228330,1.26877791,1970.4,1970.3,0.001]
[1772933231762,0.16531794,1970.4,1970.0,0.49477107]
[1772933233839,1.2688423,1970.3,1970.0,0.49477107]
[1772933234042,1.75864817,1970.3,1970.0,0.49477107]
[1772933234625,0.48980587,1970.3,1970.0,0.49477107]
[1772933236943,1.2689067,1970.2,1970.0,0.49223221]
[1772933237728,1.2689067,1970.2,1970.1,0.0011]
[1772933238545,1.75870248,1970.3,1970.1,0.0011]
[1772933241253,1.26979517,1970.4,1970.1,0.49333221]
[1772933241771,0.001,1970.4,1970.1,0.49333221]
[1772933241924,0.49080587,1970.4,1970.1,0.49333221]
[1772933244451,1.75959784,1970.4,1970.1,0.49333221]
[1772933246852,1.26979197,1970.4,1970.1,0.49333221]
[1772933249035,0.49080587,1970.4,1970.1,0.49333221]
[1772933249752,0.001,1970.3,1970.1,0.49333221]
[1772933250131,0.49080587,1970.4,1970.1,0.49333221]
[1772933250132,0.001,1970.4,1970.2,0.49223221]
[1772933253232,0.001,1970.4,1970.2,0.5229881]
[1772933254859,0.001,1970.4,1970.3,0.3339046]
[1772933255266,1.76851314,1970.9,1970.3,0.33322988]
[1772933255628,0.50005711,1970.8,1970.3,0.33322988]
[1772933256548,0.50005711,1970.6,1970.3,0.33322988]
[1772933257663,0.50005711,1970.6,1970.1,0.33496913]
[1772933259731,1.76877063,1970.5,1970.1,0.33496913]
[1772933261256,1.76877063,1970.5,1970.3,0.0011]
[1772933261566,1.76977063,1970.5,1970.3,0.0011]
[1772933265238,0.50005711,1970.4,1970.2,0.0011]
[1772933265954,0.50005711,1970.4,1970.0,0.0011]
[1772933267773,0.50005711,1970.2,1970.0,0.0011]
[1772933270747,1.76902822,1970.1,1970.0,0.0011]
[1772933273662,1.77002822,1970.1,1970.0,0.0011]
[1772933278473,1.26997111,1970.1,1970.0,0.0011]
[1772933278775,1.26997111,1970.1,1970.0,0.34201348]
[1772933279178,1.26997111,1970.1,1969.9,0.0011]
[1772933279575,0.53230403,1970.0,1969.9,0.0011]
[1772933280679,1.80133956,1970.0,1969.9,0.0011]
[1772933281976,1.26903553,1970.0,1969.9,0.0011]
[1772933297993,1.80232686,1970.1,1969.9,0.0011]
[1772933300195,0.53330403,1970.1,1969.9,0.0011]
[1772933300392,1.80228225,1970.1,1969.9,0.0011]
[1772933308806,1.80228225,1970.1,1970.0,0.0011]
[1772933309007,0.001,1970.0,1969.8,0.00558271]
[1772933320411,0.001,1970.0,1969.9,0.0011]
[1772933338517,0.001,1970.5,1969.9,0.0011]
[1772933338690,0.53430403,1970.4,1969.9,0.0011]
[1772933340229,0.53230403,1970.2,1969.9,0.0011]
[1772933343946,0.53230403,1970.2,1970.0,0.0011]
[1772933345328,0.002,1970.1,1970.0,0.0011]
[1772933348207,0.53230403,1970.1,1970.0,0.0011]
[1772933353340,0.53430403,1970.1,1970.0,0.0011]
[1772933356314,0.53530403,1970.1,1970.0,0.0011]
[1772933362142,0.53330403,1970.1,1970.0,0.0011]
[1772933366974,0.53530403,1970.1,1970.0,0.0011]
[1772933378181,0.53330403,1970.1,1970.0,0.0011]
[1772933381995,0.53530403,1970.1,1970.0,0.0011]
[1772933385191,0.003,1970.1,1970.0,0.0011]
[1772933385488,0.001,1970.3,1970.0,0.0011]
[1772933391520,0.53230403,1969.7,1969.3,0.001]
[1772933391972,2.03902905,1970.2,1968.9,5.07991998]
[1772933391973,0.53230403,1969.4,1968.9,0.0011]
[1772933392177,0.53230403,1969.4,1968.7,0.0011]
[1772933392178,0.53230403,1969.1,1968.7,0.0011]
[1772933394090,0.53230403,1969.1,1968.0,0.00153886]
[1772933394308,0.53230403,1968.7,1968.0,0.00153886]
[1772933394511,0.53230403,1968.6,1968.1,0.00253886]
[1772933395610,0.53230403,1968.6,1968.2,0.00253886]
[1772933395781,0.53230403,1968.6,1968.1,0.00253886]
[1772933396288,0.53230403,1968.4,1968.1,0.00253886]
[1772933397708,0.53230403,1968.4,1968.2,0.00253886]
[1772933397905,0.53230403,1968.4,1968.1,0.00253886]
[1772933399712,0.53230403,1968.2,1968.0,0.00153886]
[1772933399878,0.53230403,1968.2,1968.1,0.001]
[1772933400081,0.53230403,1968.2,1967.3,1.2707772]
[1772933401779,0.53230403,1968.0,1967.2,5.08310882]
[1772933402110,0.53230403,1968.0,1967.1,1.27086023]
[1772933403838,0.53230403,1967.8,1967.0,0.00153886]
[1772933404521,0.53230403,1967.8,1967.4,0.001]
[1772933404882,1.80264065,1968.0,1967.4,0.001]
[1772933405129,0.53230403,1967.9,1967.4,0.001]
[1772933408635,1.80269548,1967.9,1967.4,0.001]
[1772933408852,0.53230403,1967.8,1967.4,0.001]
[1772933409039,0.53230403,1967.8,1967.1,0.001]
[1772933409225,0.53230403,1967.8,1966.8,1.27110026]
[1772933409430,0.53230403,1967.8,1966.5,5.08496567]
[1772933409431,0.53230403,1967.6,1966.5,5.08496567]
[1772933409911,0.53230403,1967.4,1966.5,5.08496567]
[1772933411441,0.53230403,1967.6,1966.5,5.08496567]
[1772933411645,0.53230403,1967.6,1966.6,0.02031664]
[1772933412641,0.53230403,1967.6,1966.7,1.27116489]
[1772933412819,0.53230403,1967.6,1966.8,0.02031482]
[1772933414254,0.53230403,1967.8,1966.8,0.02031482]
[1772933414952,0.53230403,1967.7,1966.9,1.27103563]
[1772933416430,0.53230403,1967.7,1967.0,0.0011]
[1772933416831,0.53230403,1967.5,1967.0,0.0011]
[1772933419252,0.53230403,1967.4,1967.0,0.0011]
[1772933421154,0.53230403,1967.4,1966.9,0.0011]
[1772933421454,0.53175403,1967.2,1966.9,0.0011]
[1772933423431,0.53175403,1967.0,1966.9,0.0011]
[1772933425572,0.53175403,1967.0,1966.7,0.0011]
[1772933427231,0.53175403,1966.9,1966.7,0.0011]
[1772933427474,0.53175403,1967.1,1966.7,0.0011]
[1772933427631,0.53175403,1967.0,1966.7,0.0011]
[1772933428754,0.53175403,1967.0,1966.8,0.0011]
[1772933432046,0.53175403,1967.1,1966.8,0.0011]
[1772933432848,0.53175403,1967.2,1966.8,0.0011]
[1772933439081,0.53175403,1967.1,1966.8,0.0011]
[1772933440048,0.53175403,1967.1,1966.5,0.0011]
[1772933440279,0.51613778,1966.9,1966.3,0.10253444]
[1772933440485,0.51613778,1966.9,1966.0,1.27730747]
[1772933440995,1.78717341,1966.9,1966.8,0.0011]
[1772933441175,0.51613778,1966.8,1966.6,0.0011]
[1772933441399,0.51613778,1966.8,1966.0,0.0056905]
[1772933442167,0.51613778,1966.9,1966.1,0.00331964]
[1772933443497,0.51613778,1967.0,1966.1,0.00331964]
[1772933445104,0.51613778,1967.0,1966.0,0.00153886]
[1772933445254,0.51613778,1966.8,1966.0,0.00153886]
[1772933445457,0.51613778,1966.6,1966.0,0.00153886]
[1772933446589,0.51536835,1966.4,1965.0,0.00153886]
[1772933446788,0.51536835,1966.1,1965.0,1.2737767]
[1772933447458,0.51536835,1965.9,1965.0,0.00153886]
[1772933448866,0.51536835,1965.9,1965.1,0.00247479]
[1772933449186,0.51536835,1965.9,1965.0,0.00153886]
[1772933449353,0.51536835,1965.6,1965.0,0.00153886]
[1772933449556,0.51536835,1965.6,1965.0,0.00363219]
[1772933449753,0.51536835,1965.6,1965.1,0.00209333]
[1772933450361,0.51536835,1965.8,1965.1,0.00209333]
[1772933451982,0.51536835,1966.0,1965.1,0.00209333]
[1772933453100,0.51536835,1966.0,1965.3,0.00097501]
[1772933453290,0.51636835,1965.9,1965.3,0.00097501]
[1772933454776,0.51536835,1965.8,1965.2,0.0011]
[1772933456202,0.51536835,1965.7,1965.2,0.0011]
[1772933458687,0.51536835,1965.6,1965.2,0.0011]
[1772933460611,0.51536835,1965.5,1965.2,0.0011]
[1772933462015,1.78715575,1965.8,1965.2,0.0011]
[1772933462201,0.51536835,1965.8,1965.2,0.0011]
[1772933463020,0.48070747,1965.6,1965.2,0.0011]
[1772933465493,1.7526224,1965.6,1965.2,0.0011]
[1772933465692,1.75259058,1965.6,1965.2,0.47830643]
[1772933465924,0.48070747,1965.6,1965.2,0.47830643]
[1772933466119,1.27179615,1965.8,1965.2,0.47830643]
[1772933466328,0.48070747,1965.7,1965.2,0.47830643]
[1772933467208,0.48170747,1965.9,1965.2,0.47830643]
[1772933467825,0.48170747,1965.9,1965.4,0.47720643]
[1772933468421,0.48070747,1965.8,1965.2,1.75040859]
[1772933469195,0.48070747,1965.8,1965.2,1.27320216]
[1772933469832,1.27181156,1965.7,1965.2,1.27320216]
[1772933470000,0.48070747,1965.6,1965.2,1.27320216]
[1772933470515,0.48070747,1965.6,1965.2,0.0011]
[1772933471330,0.48070747,1965.6,1965.2,0.47830643]
[1772933471627,1.75249896,1965.8,1965.2,0.47830643]
[1772933471807,0.48070747,1965.7,1965.2,1.75040965]
[1772933472012,0.48070747,1965.7,1965.2,0.47830643]
[1772933472212,0.48070747,1965.7,1965.2,1.75043196]
[1772933472410,0.48070747,1965.7,1965.2,0.47830643]
[1772933472710,0.48070747,1965.7,1965.2,1.75043092]
[1772933472925,3.84,1965.7,1965.2,0.0011]
[1772933473128,0.48070747,1965.6,1965.2,0.0011]
[1772933473971,0.48070747,1965.4,1965.0,0.00263886]
[1772933474245,0.48070747,1965.2,1964.5,1e-08]
[1772933475635,0.48070747,1965.2,1964.5,1.27258003]
[1772933475833,0.48070747,1965.2,1964.5,0.47720644]
[1772933476039,0.48070747,1965.0,1964.5,1.7497941]
[1772933476200,0.48070747,1965.0,1964.5,1e-08]
[1772933476399,0.48070747,1965.0,1964.0,0.47874529]
[1772933476723,0.48070747,1965.0,1964.6,0.0011]
[1772933476922,0.48070747,1965.0,1964.5,0.0011]
[1772933477116,0.48070747,1965.0,1964.3,0.0011]
[1772933478117,0.48070747,1964.8,1964.3,0.0011]
[1772933479053,0.48070747,1964.8,1964.3,0.47830643]
[1772933480142,1.27213515,1965.2,1964.5,0.47720643]
[1772933480346,1.75284262,1965.2,1964.5,0.47720643]
[1772933481255,0.48070747,1965.2,1964.5,0.47720643]
[1772933482473,0.01193395,1965.1,1964.6,0.14006828]
[1772933482628,0.01193395,1965.1,1964.6,1.41259194]
[1772933483925,0.01193395,1965.1,1964.6,0.14006828]
[1772933484130,0.49264142,1965.1,1964.3,0.0011]
[1772933484461,0.48070747,1964.9,1964.3,0.0011]
[1772933484757,0.48070747,1964.7,1964.3,0.0011]
[1772933485262,0.01193395,1964.6,1964.3,0.0011]
[1772933485460,0.49264142,1964.8,1964.3,0.0011]
[1772933487178,1.27245889,1964.7,1964.3,0.0011]
[1772933487364,0.49264142,1964.6,1964.3,0.0011]
[1772933488850,0.49264142,1964.6,1964.4,0.0011]
[1772933489374,0.48070747,1964.5,1964.4,0.0011]
[1772933491286,0.01193395,1964.6,1964.4,0.0011]
[1772933491580,0.49264142,1964.6,1964.4,0.0011]
[1772933492787,0.49264142,1964.6,1964.1,1.27391144]
[1772933492788,0.49264142,1964.6,1964.1,0.0011]
[1772933493153,0.49264142,1964.6,1964.1,1.27393972]
[1772933493649,1.76518891,1964.6,1964.1,0.0011]
[1772933494212,1.76518891,1964.6,1964.1,0.13921277]
[1772933495190,1.76518891,1964.6,1964.0,4.73289456]
[1772933496496,0.50942795,1964.5,1963.5,1.37102465]
[1772933496810,0.01193395,1964.4,1963.7,1.177]
[1772933498311,0.5213619,1964.4,1963.7,1.177]
[1772933498900,0.01193395,1964.4,1963.8,1.27304206]
[1772933499085,0.5213619,1964.6,1963.8,1.27304206]
[1772933500116,0.01193395,1964.6,1963.8,1.27304206]
[1772933500503,0.001,1964.7,1963.8,1.27304206]
[1772933500708,2.0,1964.4,1963.8,1.27414206]
[1772933501016,0.001,1964.5,1963.8,1.27414206]
[1772933501492,0.001,1964.7,1963.8,7.61414206]
[1772933502748,0.001,1964.7,1963.9,6.34]
[1772933503027,0.001,1964.7,1964.1,2.48982341]
[1772933503227,0.001,1964.7,1964.2,0.05091131]
[1772933503529,0.001,1964.7,1964.3,1.193]
[1772933504529,0.00153886,1965.0,1964.3,1.193]
[1772933505031,0.00153886,1965.0,1964.4,1.27265322]
[1772933505233,0.00153886,1965.0,1964.4,1.32355934]
[1772933507132,0.50942795,1965.5,1964.4,1.32355934]
[1772933507834,0.50942795,1965.5,1964.4,1.27265322]
[1772933508001,0.01193395,1965.4,1964.4,1.27265322]
[1772933508940,0.5213619,1965.4,1964.4,1.27265322]
[1772933509161,0.5213619,1965.4,1964.5,1.202]
[1772933511153,0.5213619,1965.4,1964.6,1.27252366]
[1772933512985,0.50942795,1965.7,1964.6,1.27252366]
[1772933513192,0.5213619,1965.7,1964.6,1.27252366]
[1772933513347,1.79319921,1965.7,1964.6,1.27362366]
[1772933513549,0.50942795,1965.6,1964.6,1.27362366]
[1772933513749,0.001,1965.3,1964.6,1.27362366]
[1772933517560,0.5223619,1965.3,1964.7,1.21]
[1772933518178,0.51042795,1965.3,1964.8,1.27239413]
[1772933520264,0.5223619,1965.3,1964.8,1.27239413]
[1772933521282,0.51042795,1965.3,1964.8,1.27239413]
[1772933523384,0.50942795,1965.1,1964.8,1.27239413]
[1772933524190,0.4686085,1965.2,1964.8,1.27239413]
[1772933525103,0.48154245,1965.3,1964.8,1.7347014]
[1772933526074,0.48154245,1965.3,1964.9,0.46230727]
[1772933526506,0.48154245,1965.3,1965.0,1.27226463]
[1772933527001,0.4686085,1965.2,1964.8,5.08944794]
[1772933527186,0.4686085,1965.2,1964.8,1.27239413]
[1772933528809,0.4686085,1965.1,1964.6,0.0011]
[1772933529109,0.4686085,1965.1,1964.3,0.0011]
[1772933529277,0.48054245,1965.1,1964.3,0.0011]
[1772933530908,0.4686085,1964.9,1964.3,0.0011]
[1772933532714,0.4686085,1964.7,1964.3,0.0011]
[1772933535714,0.4686085,1964.6,1964.3,0.0011]
[1772933536716,0.4686085,1964.6,1964.0,2.49538852]
[1772933536911,1.27258252,1964.6,1964.0,2.49538852]
[1772933537116,0.4686085,1964.5,1964.0,2.49538852]
[1772933537315,0.4686085,1964.5,1964.4,0.0011]
[1772933537518,0.4686085,1964.5,1964.0,2.49538852]
[1772933537717,0.4686085,1964.5,1964.3,0.0011]
[1772933537904,0.4686085,1964.5,1964.1,0.0011]
[1772933539217,0.4686085,1964.4,1964.1,0.0011]
[1772933540838,0.48054245,1964.4,1964.1,0.0011]
[1772933541510,0.4686085,1964.2,1964.1,0.0011]
[1772933541909,0.4686085,1964.2,1963.7,0.0011]
[1772933542530,0.4686085,1964.2,1963.7,1.2742033]
[1772933543328,0.48054245,1964.2,1963.7,1.2742033]
[1772933543834,0.4686085,1964.0,1963.7,0.0011]
[1772933545305,0.4686085,1964.0,1963.5,0.0011]
[1772933545510,0.4686085,1964.0,1963.5,1.27431111]
[1772933545909,0.4686085,1963.9,1963.5,1.27431111]
[1772933546867,0.4686085,1963.9,1963.0,0.00153886]
[1772933547073,0.4686085,1963.9,1963.1,0.46230727]
[1772933548040,0.4686085,1963.7,1963.2,1.7357384]
[1772933549651,0.4686085,1963.9,1963.3,0.46230727]
[1772933549858,0.48054245,1963.9,1963.3,0.46230727]
[1772933550370,0.48054245,1963.9,1963.5,0.46230727]
[1772933550741,0.48054245,1963.9,1963.6,0.0011]
[1772933551341,0.48054245,1963.9,1963.6,0.46340727]
[1772933551342,0.01193395,1963.9,1963.6,0.46340727]
[1772933551642,0.01193395,1964.0,1963.6,0.46340727]
[1772933552069,0.4696085,1964.3,1963.6,0.51433413]
[1772933552239,0.4696085,1964.3,1963.8,0.46230727]
[1772933552440,0.01193395,1964.2,1963.8,0.46230727]
[1772933552679,0.001,1964.3,1963.8,0.46230727]
[1772933552982,0.001,1964.3,1964.0,0.48137783]
[1772933553351,0.01293395,1964.3,1964.0,0.48137783]
[1772933553651,0.001,1964.3,1964.0,0.48137783]
[1772933553854,0.01293395,1964.3,1964.0,0.48137783]
[1772933554695,0.01293395,1964.3,1964.1,1.27284761]
[1772933554900,0.001,1964.3,1964.1,1.75422544]
[1772933555972,0.50696957,1964.3,1964.0,1.27287509]
[1772933556172,0.51790352,1964.2,1963.9,1.27292683]
[1772933557275,0.01193395,1964.2,1964.0,0.48137783]
[1772933557470,0.001,1964.3,1964.0,0.48137783]
[1772933557676,0.01293395,1964.3,1964.0,0.48137783]
[1772933558798,0.001,1964.3,1964.1,1.75422544]
[1772933559692,0.001,1964.3,1964.2,0.48137783]
[1772933559869,0.50596957,1964.8,1964.2,0.48137783]
[1772933560069,0.50596957,1964.8,1964.2,0.38137783]
[1772933560696,0.50596957,1964.8,1964.3,1.75409584]